bitfinex/quotes_BTCUSD_20241120
["timestamp","ask_amount","ask_price","bid_price","bid_amount"]
[1732106278746,0.53492,93600.0,93599.0,0.30748492]
[1732106278952,0.53492,93600.0,93599.0,0.184787]
[1732106279402,0.53492,93600.0,93599.0,0.30748492]
[1732106279822,0.53492,93600.0,93599.0,0.184787]
[1732106280254,0.53492,93600.0,93599.0,0.30748492]
[1732106280452,0.53492,93600.0,93599.0,0.184787]
[1732106282698,0.53492,93600.0,93599.0,0.22807572]
[1732106283763,0.5357765,93600.0,93599.0,0.22807572]
[1732106284913,0.5357765,93600.0,93587.0,0.002]
[1732106284914,0.5357765,93600.0,93577.0,0.01]
[1732106284915,0.106855,93584.0,93577.0,0.01]
[1732106285163,0.10711512,93583.0,93582.0,0.0748]
[1732106285985,0.10711512,93583.0,93579.0,0.074802]
[1732106286242,0.10711512,93583.0,93573.0,0.12269792]
[1732106286466,0.10711512,93583.0,93573.0,0.19750492]
[1732106286651,0.10711512,93583.0,93573.0,0.12269792]
[1732106286829,0.10711512,93583.0,93581.0,0.074801]
[1732106287256,0.10711512,93583.0,93579.0,0.074802]
[1732106287460,0.10711512,93583.0,93568.0,0.074811]
[1732106287461,0.10711512,93583.0,93559.0,0.12269792]
[1732106287730,0.10711512,93583.0,93563.0,0.074815]
[1732106287731,0.10686,93580.0,93563.0,0.074815]
[1732106287934,0.10711512,93579.0,93564.0,0.1]
[1732106288374,0.10711512,93579.0,93563.0,0.074815]
[1732106288375,0.10711512,93579.0,93568.0,0.074811]
[1732106289043,0.10711512,93579.0,93565.0,0.1]
[1732106289266,0.10711512,93579.0,93561.0,0.074817]
[1732106289267,0.10711512,93579.0,93566.0,0.074812]
[1732106289692,0.10711512,93579.0,93568.0,0.074811]
[1732106289890,0.10711512,93579.0,93566.0,0.074812]
[1732106290093,0.10711512,93579.0,93561.0,0.074817]
[1732106290307,0.10711512,93579.0,93566.0,0.074812]
[1732106290503,0.10711512,93579.0,93567.0,0.074812]
[1732106290723,0.10711512,93579.0,93562.0,0.1]
[1732106290942,0.01980035,93586.0,93568.0,0.01]
[1732106291159,0.5357765,93600.0,93568.0,0.01]
[1732106291160,0.106839,93598.0,93586.0,0.074796]
[1732106291396,0.10711512,93597.0,93586.0,0.074796]
[1732106291588,0.10711512,93597.0,93588.0,0.074795]
[1732106292241,0.10711512,93597.0,93586.0,0.149593]
[1732106292449,0.10711512,93597.0,93586.0,0.074796]
[1732106292656,0.21395612,93597.0,93582.0,0.00090091]
[1732106292859,0.21395612,93597.0,93585.0,0.074798]
[1732106293584,0.21395612,93597.0,93587.0,0.074796]
[1732106293585,0.10711512,93597.0,93587.0,0.074796]
[1732106293792,0.10711512,93597.0,93595.0,0.07479]
[1732106293995,0.5357765,93600.0,93599.0,0.074787]
[1732106301048,0.5357765,93600.0,93598.0,0.074787]
[1732106301262,0.5357765,93600.0,93599.0,0.074787]
[1732106305541,0.5357765,93600.0,93599.0,0.084787]
[1732106307809,0.5357765,93600.0,93591.0,0.12751508]
[1732106307810,0.64289162,93600.0,93590.0,0.074793]
[1732106308007,0.00556418,93592.0,93590.0,0.06787294]
[1732106308183,0.00556418,93592.0,93589.0,0.074794]
[1732106308599,0.00556418,93592.0,93591.0,0.074793]
[1732106309463,0.00556418,93592.0,93589.0,0.074794]
[1732106309707,0.00556418,93592.0,93590.0,0.074793]
[1732106309938,0.00556418,93592.0,93591.0,0.074793]
[1732106310472,0.1126793,93592.0,93568.0,0.074811]
[1732106310657,0.10711512,93591.0,93587.0,0.074796]
[1732106310853,0.10711512,93591.0,93567.0,0.1]
[1732106310854,0.019906,93590.0,93581.0,0.0748]
[1732106311059,0.019906,93590.0,93563.0,0.0117126]
[1732106311060,0.12702112,93589.0,93563.0,0.0117126]
[1732106311273,0.126757,93588.0,93579.0,0.074802]
[1732106311497,0.12702112,93587.0,93580.0,0.074801]
[1732106311702,0.019906,93586.0,93579.0,0.074802]
[1732106311902,0.00556418,93592.0,93563.0,0.0117126]
[1732106311903,0.12702112,93585.0,93584.0,0.074798]
[1732106312506,0.12702112,93585.0,93579.0,0.074802]
[1732106312711,0.019906,93584.0,93581.0,0.0748]
[1732106312912,0.12702112,93583.0,93577.0,0.074804]
[1732106313114,0.12702112,93583.0,93566.0,0.074813]
[1732106313115,0.106867,93574.0,93566.0,0.074813]
[1732106313317,0.106872,93570.0,93563.0,0.0017126]
[1732106313487,0.21398812,93569.0,93563.0,0.0017126]
[1732106313693,0.01991694,93568.0,93563.0,0.0017126]
[1732106313941,0.106878,93565.0,93563.0,0.0017126]
[1732106314113,0.12703257,93564.0,93563.0,0.0017126]
[1732106314514,0.10711512,93564.0,93563.0,0.0017126]
[1732106314722,0.1270349,93564.0,93563.0,0.0017126]
[1732106315363,0.1270349,93564.0,93563.0,0.0872156]
[1732106316198,0.10711512,93564.0,93563.0,0.0872156]
[1732106317170,0.01990448,93571.0,93570.0,0.085497]
[1732106317378,0.1270196,93571.0,93570.0,0.085497]
[1732106317786,0.10711512,93571.0,93570.0,0.085497]
[1732106317992,0.00556419,93581.0,93580.0,0.085488]
[1732106318200,0.11267931,93581.0,93580.0,0.085488]
[1732106322847,0.11167931,93581.0,93580.0,0.0872]
[1732106326160,0.11167931,93581.0,93580.0,0.001712]
[1732106326161,0.23844105,93581.0,93580.0,0.001712]
[1732106327310,0.13158205,93581.0,93580.0,0.001712]
[1732106327494,0.13158205,93581.0,93580.0,0.0872]
[1732106328362,0.10711512,93581.0,93580.0,0.0872]
[1732106328560,0.10711512,93581.0,93580.0,0.08263581]
[1732106328838,0.10711512,93581.0,93580.0,0.085488]
[1732106329041,0.12702279,93581.0,93580.0,0.085488]
[1732106329368,0.10711512,93581.0,93580.0,0.085488]
[1732106333048,0.10711512,93581.0,93571.0,0.0759]
[1732106333049,0.01990767,93589.0,93571.0,0.0759]
[1732106333247,0.000856,93592.0,93591.0,0.085478]
[1732106334820,0.10797112,93592.0,93591.0,0.085478]
[1732106337214,0.10797112,93592.0,93558.0,0.12260399]
[1732106337215,0.1308,93591.0,93580.0,0.085487]
[1732106337363,0.2137,93589.0,93575.0,0.085492]
[1732106337574,0.106854,93585.0,93580.0,0.0017122]
[1732106337790,0.213698,93590.0,93580.0,0.0017122]
[1732106337791,0.10711512,93584.0,93581.0,0.085487]
[1732106338450,0.10711512,93584.0,93583.0,0.085485]
[1732106339001,0.21455,93592.0,93582.0,0.085486]
[1732106339002,0.000856,93592.0,93591.0,0.085478]
[1732106349578,0.000856,93592.0,93587.0,0.085481]
[1732106349777,0.000856,93592.0,93589.0,0.085479]
[1732106350243,0.000856,93592.0,93591.0,0.085478]
[1732106351848,0.10797112,93592.0,93581.0,0.085487]
[1732106352180,0.10711512,93591.0,93581.0,0.085487]
[1732106352349,0.10711512,93591.0,93583.0,0.085485]
[1732106352549,0.03192613,93590.0,93583.0,0.085485]
[1732106352753,0.13904125,93589.0,93584.0,0.085484]
[1732106352952,0.03192613,93588.0,93584.0,0.085484]
[1732106353162,0.03192613,93588.0,93580.0,0.0017122]
[1732106353163,0.03192613,93588.0,93587.0,0.085481]
[1732106353367,0.03192613,93591.0,93585.0,0.085482]
[1732106353572,0.000856,93592.0,93581.0,0.085486]
[1732106353746,0.000856,93592.0,93591.0,0.085478]
[1732106354165,0.000856,93592.0,93587.0,0.085481]
[1732106354564,0.000856,93592.0,93589.0,0.085479]
[1732106355180,0.000856,93592.0,93590.0,0.085479]
[1732106355563,0.03192696,93591.0,93590.0,0.085479]
[1732106356329,0.13904208,93591.0,93588.0,0.08548]
[1732106356530,0.13904208,93590.0,93588.0,0.08548]
[1732106356749,0.000856,93592.0,93580.0,0.0017122]
[1732106356750,0.13904208,93589.0,93580.0,0.0017122]
[1732106356877,0.106853,93587.0,93580.0,0.0017122]
[1732106357079,0.13904208,93586.0,93580.0,0.0017122]
[1732106357279,0.03192696,93585.0,93580.0,0.0017122]
[1732106357483,0.000856,93592.0,93580.0,0.0017122]
[1732106357484,0.10711512,93584.0,93581.0,0.085486]
[1732106357691,0.10711512,93584.0,93582.0,0.085486]
[1732106358354,0.10711512,93584.0,93582.0,0.170972]
[1732106358561,0.10711512,93584.0,93582.0,0.085486]
[1732106359280,0.10711512,93584.0,93580.0,0.0871992]
[1732106359861,0.10711512,93584.0,93581.0,0.085487]
[1732106360059,0.10711512,93584.0,93580.0,0.0871992]
[1732106360474,0.10711512,93584.0,93580.0,0.1726862]
[1732106361013,0.10711512,93584.0,93581.0,0.085487]
[1732106361541,0.03384685,93586.0,93583.0,0.085485]
[1732106361794,0.000856,93592.0,93591.0,0.085478]
[1732106362003,0.10797112,93592.0,93591.0,0.085478]
[1732106362377,0.10797112,93592.0,93580.0,0.0017122]
[1732106362576,0.10711512,93591.0,93590.0,0.085479]
[1732106362792,0.01,93602.0,93590.0,0.085479]
[1732106362793,0.23946797,93621.0,93618.0,0.085453]
[1732106362992,0.0017126,93627.0,93614.0,0.0818]
[1732106362993,0.14367286,93622.0,93614.0,0.0818]
[1732106363208,0.0017126,93627.0,93610.0,0.08546]
[1732106363209,0.10711512,93618.0,93610.0,0.08546]
[1732106363465,0.10711512,93618.0,93614.0,0.085456]
[1732106363622,0.106821,93614.0,93589.0,0.0787]
[1732106363797,0.10711512,93613.0,93607.0,0.085463]
[1732106364271,0.10711512,93613.0,93607.0,0.170926]
[1732106364547,0.10711512,93613.0,93608.0,0.085461]
[1732106364682,0.10711512,93613.0,93607.0,0.085463]
[1732106364887,0.10711512,93613.0,93609.0,0.085461]
[1732106365359,0.10711512,93613.0,93610.0,0.08546]
[1732106365536,0.10711512,93613.0,93611.0,0.085459]
[1732106365739,0.10711512,93613.0,93612.0,0.085459]
[1732106367308,0.0008553,93619.0,93606.0,0.085464]
[1732106367309,0.0008553,93619.0,93618.0,0.085453]
[1732106367519,0.10797042,93619.0,93618.0,0.085453]
[1732106367737,0.0008553,93619.0,93618.0,0.085453]
[1732106370668,0.0008553,93619.0,93618.0,0.095453]
[1732106371285,0.0008553,93619.0,93618.0,0.085453]
[1732106371480,0.10797042,93619.0,93618.0,0.085453]
[1732106375126,0.10797042,93619.0,93592.0,0.0817]
[1732106375341,0.106818,93617.0,93611.0,0.085459]
[1732106375568,0.10711512,93616.0,93611.0,0.085459]
[1732106375749,0.10711512,93616.0,93615.0,0.085456]
[1732106378971,0.0008553,93619.0,93618.0,0.085453]
[1732106387884,0.0008553,93619.0,93618.0,0.095453]
[1732106388512,0.0008553,93619.0,93618.0,0.321053]
[1732106390906,0.0008553,93619.0,93618.0,0.42816812]
[1732106391975,0.0008553,93619.0,93618.0,0.43816812]
[1732106394781,0.0008553,93619.0,93618.0,0.262353]
[1732106395896,0.0008553,93619.0,93618.0,0.37946812]
[1732106397961,0.0008553,93619.0,93618.0,0.38946812]
[1732106399984,0.0008553,93619.0,93618.0,0.272353]
[1732106400229,0.0008553,93619.0,93618.0,0.282353]
[1732106401222,0.0008553,93619.0,93618.0,0.272353]
[1732106401431,0.0008553,93619.0,93618.0,0.282353]
[1732106402897,0.0008553,93619.0,93618.0,0.085453]
[1732106404819,0.0008553,93619.0,93618.0,0.095453]
[1732106405029,0.0008553,93619.0,93618.0,0.30256812]
[1732106405677,0.0008553,93619.0,93618.0,0.39106812]
[1732106408275,0.0008553,93619.0,93618.0,0.509271]
[1732106408435,3e-07,93619.0,93618.0,0.509271]
[1732106408633,3e-07,93619.0,93618.0,0.41406812]
[1732106409510,3e-07,93619.0,93618.0,0.41606812]
[1732106409915,3e-07,93619.0,93618.0,0.60675941]
[1732106410121,3e-07,93619.0,93618.0,0.41406812]
[1732106410328,3e-07,93619.0,93618.0,0.60675941]
[1732106410754,3e-07,93619.0,93618.0,0.41606812]
[1732106410984,3e-07,93619.0,93618.0,0.60673656]
[1732106411200,3e-07,93619.0,93618.0,0.41406812]
[1732106411404,3e-07,93619.0,93618.0,0.55706517]
[1732106411823,3e-07,93619.0,93618.0,0.48639529]
[1732106412055,3e-07,93619.0,93618.0,0.085453]
[1732106414611,3e-07,93619.0,93604.0,0.1]
[1732106414612,0.0475,93618.0,93604.0,0.1]
[1732106414863,0.0475,93618.0,93592.0,0.01]
[1732106414864,0.12706725,93617.0,93592.0,0.01]
[1732106415072,0.12677113,93616.0,93604.0,0.085466]
[1732106415301,0.10711512,93617.0,93604.0,0.085466]
[1732106415302,0.12706725,93615.0,93604.0,0.085466]
[1732106415563,0.12706725,93615.0,93605.0,0.085465]
[1732106415808,0.01995213,93614.0,93606.0,0.085464]
[1732106416050,0.01995213,93613.0,93607.0,0.085463]
[1732106416265,0.01995213,93612.0,93592.0,0.095477]
[1732106416490,0.01995213,93611.0,93602.0,0.085467]
[1732106416738,0.01995213,93610.0,93602.0,0.085468]
[1732106417007,0.10711512,93614.0,93601.0,0.0017118]
[1732106417259,0.10711512,93614.0,93609.0,0.085461]
[1732106417644,0.10711512,93614.0,93608.0,0.085462]
[1732106418062,0.10711512,93614.0,93601.0,0.0017118]
[1732106418063,0.01992662,93613.0,93612.0,0.085459]
[1732106418264,0.0475,93618.0,93614.0,0.085456]
[1732106418473,0.0475,93618.0,93615.0,0.085455]
[1732106418676,0.0475,93618.0,93617.0,0.085454]
[1732106421518,0.15461512,93618.0,93601.0,0.0017118]
[1732106421724,0.10711512,93617.0,93613.0,0.085458]
[1732106421868,0.10711512,93617.0,93601.0,0.0017118]
[1732106422073,0.10711512,93617.0,93604.0,0.085466]
[1732106422074,0.106821,93615.0,93604.0,0.085466]
[1732106422288,0.0475,93618.0,93601.0,0.0017118]
[1732106422289,0.10711512,93614.0,93602.0,0.085468]
[1732106422504,0.10711512,93614.0,93601.0,0.0017118]
[1732106422700,0.213645,93613.0,93601.0,0.0017118]
[1732106422958,0.10711512,93612.0,93601.0,0.0017118]
[1732106423169,0.0783,93606.0,93601.0,0.0017118]
[1732106423379,0.0783,93606.0,93602.0,0.085467]
[1732106423591,0.0783,93606.0,93601.0,0.0017118]
[1732106423810,0.106835,93602.0,93601.0,0.0017118]
[1732106424025,0.21395012,93602.0,93601.0,0.0017118]
[1732106427208,0.50755411,93602.0,93601.0,0.0017118]
[1732106427415,0.50955411,93602.0,93601.0,0.0017118]
[1732106428203,0.60955411,93602.0,93601.0,0.0017118]
[1732106428422,0.60955411,93602.0,93567.0,0.085499]
[1732106428423,0.152259,93581.0,93567.0,0.085499]
[1732106428659,0.25937412,93581.0,93569.0,0.085497]
[1732106428961,0.25937412,93581.0,93568.0,0.085498]
[1732106429171,0.25937412,93581.0,93563.0,0.0872156]
[1732106429396,0.34087412,93581.0,93563.0,0.0017126]
[1732106429809,0.34087412,93581.0,93565.0,0.085501]
[1732106430040,0.34087412,93581.0,93566.0,0.0855]
[1732106430448,0.34087412,93581.0,93566.0,0.171]
[1732106430661,0.34087412,93581.0,93566.0,0.0855]
[1732106431060,0.3760038,93581.0,93566.0,0.0855]
[1732106431299,0.3760038,93581.0,93569.0,0.085498]
[1732106431515,0.3760038,93581.0,93563.0,0.0017126]
[1732106431721,0.3760038,93581.0,93565.0,0.171002]
[1732106431947,0.3760038,93581.0,93567.0,0.0855]
[1732106432301,0.3760038,93581.0,93563.0,0.0017126]
[1732106432707,0.3860038,93581.0,93563.0,0.0017126]
[1732106432909,0.3860038,93581.0,93563.0,0.0872156]
[1732106433110,0.3860038,93581.0,93563.0,0.0017126]
[1732106433111,0.3960038,93581.0,93563.0,0.0017126]
[1732106433661,0.3980038,93581.0,93563.0,0.0017126]
[1732106433840,0.4980038,93581.0,93563.0,0.0017126]
[1732106434452,0.62060779,93581.0,93563.0,0.0017126]
[1732106434665,0.64360779,93581.0,93563.0,0.0017126]
[1732106434793,0.35468199,93564.0,93563.0,0.0017126]
[1732106434998,0.46179711,93564.0,93563.0,0.0017126]
[1732106437168,0.33919312,93564.0,93563.0,0.0017126]
[1732106437656,0.26289312,93564.0,93563.0,0.0017126]
[1732106437855,0.19122934,93564.0,93563.0,0.0017126]
[1732106438033,0.14232934,93564.0,93563.0,0.0017126]
[1732106440133,0.14232934,93564.0,93563.0,0.0872156]
[1732106440134,0.03521422,93564.0,93563.0,0.0872156]
[1732106440328,0.0484,93589.0,93563.0,0.0801126]
[1732106440473,0.0484,93589.0,93574.0,0.085493]
[1732106440474,0.213707,93586.0,93574.0,0.085493]
[1732106440678,0.01,93587.0,93563.0,0.0801126]
[1732106440679,0.21397012,93585.0,93563.0,0.0801126]
[1732106440889,0.106855,93584.0,93577.0,0.08549]
[1732106441134,0.0484,93569.0,93563.0,0.0017126]
[1732106441260,0.106878,93564.0,93563.0,0.0017126]
[1732106441467,0.10711512,93564.0,93563.0,0.0017126]
[1732106442377,0.198962,93579.0,93573.0,0.085494]
[1732106442762,0.198962,93579.0,93563.0,0.0017126]
[1732106442763,0.213727,93577.0,93563.0,0.0017126]
[1732106442969,0.106868,93574.0,93566.0,0.085501]
[1732106443101,0.10711512,93573.0,93563.0,0.0017126]
[1732106443306,0.10711512,93573.0,93566.0,0.0855]
[1732106443725,0.10711512,93573.0,93565.0,0.085502]
[1732106443934,0.21398312,93573.0,93565.0,0.171003]
[1732106444139,0.10711512,93573.0,93566.0,0.0855]
[1732106445066,0.10711512,93573.0,93567.0,0.0855]
[1732106445236,0.10711512,93573.0,93565.0,0.085501]
[1732106445441,0.10711512,93573.0,93563.0,0.0872156]
[1732106445765,0.10711512,93573.0,93563.0,0.0017126]
[1732106445766,0.32085212,93573.0,93563.0,0.0017126]
[1732106446089,0.152378,93564.0,93563.0,0.0017126]
[1732106446221,0.25949312,93564.0,93563.0,0.0017126]
[1732106452296,0.29334461,93564.0,93563.0,0.0017126]
[1732106452511,0.24784461,93564.0,93563.0,0.0017126]
[1732106454565,0.14096661,93564.0,93563.0,0.0017126]
[1732106455011,0.24784461,93564.0,93563.0,0.0017126]
[1732106455484,0.14096661,93564.0,93563.0,0.0017126]
[1732106455691,0.14096661,93564.0,93557.0,0.085509]
[1732106455692,0.14096661,93564.0,93555.0,0.06682273]
[1732106455874,0.21399512,93563.0,93556.0,0.085509]
[1732106456130,0.106881,93562.0,93555.0,0.06682273]
[1732106456337,0.10711512,93561.0,93555.0,0.06682273]
[1732106456740,0.10711512,93561.0,93557.0,0.085509]
[1732106456939,0.10711512,93561.0,93556.0,0.08551]
[1732106457922,0.10711512,93561.0,93554.0,0.085511]
[1732106458525,0.10711512,93561.0,93523.0,0.085539]
[1732106458526,0.12260399,93559.0,93534.0,0.0803]
[1732106458734,0.12260399,93552.0,93534.0,0.0803]
[1732106458938,0.12260399,93552.0,93538.0,0.085526]
[1732106458939,0.106898,93547.0,93538.0,0.085526]
[1732106459139,0.10711512,93546.0,93538.0,0.085526]
[1732106459566,0.10711512,93546.0,93540.0,0.085524]
[1732106460021,0.10711512,93546.0,93541.0,0.085523]
[1732106460244,0.10711512,93546.0,93540.0,0.085524]
[1732106460639,0.10711512,93546.0,93540.0,0.171048]
[1732106460891,0.21401412,93546.0,93536.0,0.085528]
[1732106461147,0.10711512,93546.0,93534.0,0.0803]
[1732106461323,0.10711512,93546.0,93538.0,0.085526]
[1732106461529,0.10711512,93546.0,93540.0,0.085524]
[1732106461695,0.10711512,93546.0,93542.0,0.085522]
[1732106461857,0.10711512,93546.0,93538.0,0.085526]
[1732106461858,0.10711512,93546.0,93540.0,0.085524]
[1732106462071,0.10711512,93546.0,93543.0,0.085521]
[1732106462274,0.14110631,93546.0,93543.0,0.085521]
[1732106462478,0.14110631,93546.0,93542.0,0.085522]
[1732106462693,0.14110631,93546.0,93542.0,0.171044]
[1732106463105,0.14110631,93546.0,93542.0,0.085522]
[1732106463315,0.14110631,93546.0,93543.0,0.085521]
[1732106463517,0.14110631,93546.0,93545.0,0.08552]
[1732106464527,0.03399119,93546.0,93545.0,0.08552]
[1732106464736,0.003499,93557.0,93550.0,0.085515]
[1732106464938,0.10711512,93556.0,93551.0,0.085513]
[1732106465249,0.10711512,93556.0,93554.0,0.085511]
[1732106465659,0.10711512,93556.0,93555.0,0.085511]
[1732106465859,0.10711512,93556.0,93554.0,0.085511]
[1732106466062,0.10711512,93556.0,93552.0,0.085513]
[1732106466455,0.10711512,93556.0,93552.0,0.171026]
[1732106466986,0.213777,93555.0,93534.0,0.0803]
[1732106467187,0.12260399,93552.0,93536.0,0.085527]
[1732106467478,0.12260399,93552.0,93526.0,0.0008567]
[1732106467479,0.106904,93542.0,93527.0,0.08]
[1732106467803,0.10711512,93542.0,93535.0,0.085529]
[1732106467985,0.10711512,93542.0,93536.0,0.085527]
[1732106468216,0.213793,93548.0,93536.0,0.085527]
[1732106468217,0.10711512,93541.0,93540.0,0.0017118]
[1732106469308,0.21401912,93541.0,93540.0,0.0017118]
[1732106469503,0.10711512,93541.0,93540.0,0.0017118]
[1732106469711,0.34201912,93541.0,93540.0,0.0017118]
[1732106470484,0.37615671,93541.0,93540.0,0.0017118]
[1732106470731,0.40942335,93541.0,93540.0,0.0017118]
[1732106470932,0.37615671,93541.0,93540.0,0.0017118]
[1732106473474,0.29755671,93541.0,93540.0,0.0017118]
[1732106475245,0.38575671,93541.0,93540.0,0.0017118]
[1732106475706,0.49575671,93541.0,93540.0,0.0017118]
[1732106477470,0.49375671,93541.0,93540.0,0.0017118]
[1732106478646,0.49575671,93541.0,93540.0,0.0017118]
[1732106479074,0.49375671,93541.0,93540.0,0.0017118]
[1732106482829,0.41755671,93541.0,93540.0,0.0017118]
[1732106483925,0.35815671,93541.0,93540.0,0.0017118]
[1732106484131,0.25815671,93541.0,93540.0,0.0017118]
[1732106484361,0.14125271,93541.0,93540.0,0.0017118]
[1732106484954,0.24815671,93541.0,93540.0,0.0017118]
[1732106486753,0.14125271,93541.0,93540.0,0.0017118]
[1732106486950,0.24815671,93541.0,93540.0,0.0017118]
[1732106490302,0.14125271,93541.0,93540.0,0.0017118]
[1732106490516,0.14125271,93541.0,93540.0,0.0872358]
[1732106490723,0.03413759,93541.0,93540.0,0.0872358]
[1732106490955,0.213788,93551.0,93540.0,0.0017118]
[1732106491129,0.106899,93546.0,93540.0,0.0872358]
[1732106491310,0.10711512,93545.0,93540.0,0.0872358]
[1732106492609,0.10711512,93545.0,93544.0,0.085521]
[1732106494173,0.10711512,93545.0,93544.0,0.164521]
[1732106494940,0.15172736,93552.0,93544.0,0.164521]
[1732106494941,0.03483436,93552.0,93551.0,0.085514]
[1732106495181,0.10711512,93552.0,93551.0,0.085514]
[1732106496516,0.10711512,93552.0,93544.0,0.079]
[1732106496710,0.03611701,93555.0,93540.0,0.0017118]
[1732106496711,0.10711512,93551.0,93540.0,0.0017118]
[1732106496928,0.106902,93544.0,93540.0,0.0017118]
[1732106497125,0.10711512,93543.0,93541.0,0.085523]
[1732106497358,0.106904,93541.0,93540.0,0.0017118]
[1732106497572,0.33401912,93541.0,93540.0,0.0017118]
[1732106498978,0.33401912,93541.0,93540.0,0.0006118]
[1732106500177,0.95611912,93541.0,93540.0,0.0006118]
[1732106500377,1.02591912,93541.0,93540.0,0.0006118]
[1732106500581,1.37933856,93541.0,93540.0,0.0006118]
[1732106500835,1.41414693,93541.0,93540.0,0.0006118]
[1732106501075,1.4474155,93541.0,93540.0,0.0006118]
[1732106505077,1.44747724,93541.0,93540.0,0.0006118]
[1732106505438,0.90757724,93541.0,93540.0,0.0006118]
[1732106509637,0.9074845,93541.0,93540.0,0.0006118]
[1732106510739,0.9074845,93541.0,93508.0,0.0017118]
[1732106510740,0.01,93526.0,93508.0,0.0017118]
[1732106510961,0.126931,93518.0,93508.0,0.0017118]
[1732106511189,0.35665011,93518.0,93508.0,0.0017118]
[1732106511403,0.45665011,93518.0,93508.0,0.0017118]
[1732106511652,0.55239918,93518.0,93508.0,0.0017118]
[1732106512437,0.45665011,93518.0,93508.0,0.0017118]
[1732106512849,0.233874,93513.0,93468.0,0.1]
[1732106513045,0.106951,93501.0,93478.0,0.096278]
[1732106513241,0.10711512,93500.0,93489.0,0.085571]
[1732106513542,0.10711512,93500.0,93487.0,0.085572]
[1732106513907,0.106953,93499.0,93487.0,0.085572]
[1732106514079,0.21406912,93498.0,93487.0,0.085572]
[1732106514291,0.10711512,93498.0,93488.0,0.085571]
[1732106514496,0.10711512,93498.0,93473.0,0.03467275]
[1732106514497,0.32102312,93498.0,93479.0,0.08558]
[1732106514727,0.12688374,93497.0,93484.0,0.085575]
[1732106514965,0.12704286,93496.0,93488.0,0.085571]
[1732106515102,0.01992774,93495.0,93489.0,0.085571]
[1732106515285,0.106951,93501.0,93489.0,0.085571]
[1732106515286,0.12704286,93494.0,93489.0,0.085571]
[1732106515485,0.01992774,93493.0,93489.0,0.085571]
[1732106515683,0.01992774,93492.0,93489.0,0.085571]
[1732106515908,0.01992774,93491.0,93490.0,0.0815]
[1732106516265,0.01992774,93491.0,93490.0,0.16707]
[1732106516666,0.01992774,93492.0,93490.0,0.16707]
[1732106516876,0.10711512,93493.0,93490.0,0.16707]
[1732106516877,0.10711512,93493.0,93490.0,0.16673916]
[1732106517086,0.01992038,93492.0,93490.0,0.16673916]
[1732106517313,0.10711512,93493.0,93490.0,0.16673916]
[1732106517729,0.01992038,93492.0,93490.0,0.16673916]
[1732106518140,0.1270355,93491.0,93472.0,0.085586]
[1732106518353,0.106967,93487.0,93476.0,0.085583]
[1732106518582,0.01992038,93486.0,93476.0,0.171165]
[1732106518829,0.106967,93487.0,93470.0,0.085588]
[1732106518830,0.01992038,93485.0,93478.0,0.08558]
[1732106519028,0.21392,93493.0,93470.0,0.085588]
[1732106519029,0.1270355,93484.0,93470.0,0.085588]
[1732106519239,0.10711512,93484.0,93474.0,0.085585]
[1732106519443,0.10711512,93484.0,93469.0,0.0482]
[1732106519647,0.21408512,93484.0,93474.0,0.085584]
[1732106519869,0.01991075,93483.0,93473.0,0.085585]
[1732106520070,0.10711512,93482.0,93476.0,0.085582]
[1732106520274,0.10711512,93482.0,93480.0,0.0017122]
[1732106520476,0.01991078,93481.0,93480.0,0.0017122]
[1732106520699,0.10711512,93481.0,93480.0,0.0017122]
[1732106521685,0.10711512,93481.0,93480.0,0.0872912]
[1732106521919,0.01991078,93490.0,93480.0,0.0017122]
[1732106522118,0.01,93495.0,93480.0,0.0017122]
[1732106522119,0.106965,93488.0,93480.0,0.0017122]
[1732106522323,0.12702329,93487.0,93480.0,0.0017122]
[1732106522524,0.12702329,93487.0,93480.0,0.0872912]
[1732106522525,0.01990817,93486.0,93480.0,0.0872912]
[1732106522727,0.10711512,93485.0,93480.0,0.0017122]
[1732106522893,0.01,93482.0,93480.0,0.0017122]
[1732106523088,0.21408812,93481.0,93480.0,0.0017122]
[1732106526998,0.33608812,93481.0,93480.0,0.0017122]
[1732106527202,0.36123097,93481.0,93480.0,0.0017122]
[1732106527969,0.41300146,93481.0,93480.0,0.0017122]
[1732106528605,0.15888561,93481.0,93480.0,0.0017122]
[1732106529039,0.26585861,93481.0,93480.0,0.0017122]
[1732106529711,0.21408812,93481.0,93480.0,0.0017122]
[1732106529940,0.23399821,93481.0,93480.0,0.0017122]
[1732106530128,0.24399821,93481.0,93480.0,0.0017122]
[1732106530415,0.28585436,93481.0,93480.0,0.0017122]
[1732106532913,0.23408812,93481.0,93480.0,0.0017122]
[1732106533111,0.28585816,93481.0,93480.0,0.0017122]
[1732106533671,0.27585816,93481.0,93480.0,0.0017122]
[1732106534086,0.24399967,93481.0,93480.0,0.0017122]
[1732106534488,0.27585816,93481.0,93480.0,0.0017122]
[1732106535152,0.28585816,93481.0,93480.0,0.0017122]
[1732106535307,0.38785816,93481.0,93480.0,0.0017122]
[1732106536477,0.35600252,93481.0,93480.0,0.0017122]
[1732106536704,0.38786556,93481.0,93480.0,0.0017122]
[1732106537037,0.38586556,93481.0,93480.0,0.0017122]
[1732106538332,0.37586556,93481.0,93480.0,0.0017122]
[1732106538524,0.54962243,93481.0,93480.0,0.0017122]
[1732106538747,0.53366556,93481.0,93480.0,0.0017122]
[1732106538938,0.53566556,93481.0,93480.0,0.0017122]
[1732106539093,0.47880252,93481.0,93480.0,0.0017122]
[1732106540023,0.47881782,93481.0,93480.0,0.0017122]
[1732106540229,0.48081782,93481.0,93480.0,0.0017122]
[1732106540428,0.48082431,93481.0,93480.0,0.0017122]
[1732106541031,0.51272165,93481.0,93480.0,0.0017122]
[1732106541232,1.05262165,93481.0,93480.0,0.0017122]
[1732106541438,1.05262165,93481.0,93471.0,0.0004]
[1732106541439,0.42578699,93472.0,93471.0,0.0004]
[1732106541613,0.58473564,93472.0,93471.0,0.0004]
[1732106542010,0.5548383,93472.0,93471.0,0.0004]
[1732106542239,0.5528383,93472.0,93471.0,0.0004]
[1732106543101,0.58473515,93472.0,93471.0,0.0004]
[1732106543986,0.6196549,93472.0,93471.0,0.0004]
[1732106544196,0.58775805,93472.0,93471.0,0.0004]
[1732106544844,0.58775805,93472.0,93471.0,0.002113]
[1732106545500,0.56782186,93472.0,93471.0,0.002113]
[1732106545710,0.587762,93472.0,93471.0,0.002113]
[1732106546681,0.501562,93472.0,93471.0,0.002113]
[1732106546893,0.16197501,93472.0,93471.0,0.002113]